fUSD/lending_fUSD_20250226
["ID","MTS","AMOUNT","RATE_DAILY","PERIOD"]
[354599585,1740594654244,-500.0,0.00035616,14]
[354599586,1740594654254,-2236.65,0.00035616,14]
[354599587,1740594654263,-500.0,0.00035616,14]
[354599588,1740594654273,-500.0,0.00035616,14]
[354599589,1740594654282,-964.26,0.00035616,14]
[354599590,1740594654295,-500.0,0.00035616,14]
[354599591,1740594654305,-500.0,0.00035616,14]
[354599592,1740594654315,-500.0,0.00035616,14]
[354599593,1740594654324,-500.0,0.00035616,14]
[354599594,1740594654334,-500.0,0.00035616,14]
[354599595,1740594654343,-549.89,0.00035616,14]
[354599596,1740594654353,-500.0,0.00035616,14]
[354599597,1740594654363,-500.0,0.00035616,14]
[354599598,1740594654374,-2307.38,0.00035616,14]
[354599599,1740594654383,-653.73,0.00035616,14]
[354599600,1740594654393,-500.0,0.00035616,14]
[354599601,1740594654403,-552.7,0.00035616,14]
[354599602,1740594654413,-500.0,0.00035616,14]
[354599603,1740594654424,-535.71,0.00035616,14]
[354599604,1740594654440,-2598.63,0.00035616,14]
[354599605,1740594654457,-867.45,0.00035616,14]
[354599606,1740594654467,-1985.02,0.00035616,14]
[354599607,1740594654477,-1157.49,0.00035616,14]
[354599608,1740594654487,-2616.3,0.00035616,2]
[354599609,1740594654498,-1881.64,0.00035616,14]
[354599610,1740594654509,-500.0,0.00035616,14]
[354599611,1740594654519,-4004.42,0.00035616,14]
[354599612,1740594654530,-1122.84,0.00035616,14]
[354599613,1740594654547,-3252.85,0.00035616,14]
[354599614,1740594654557,-5328.04,0.00035616,14]
[354599615,1740594654568,-1829.1,0.00035616,14]
[354599616,1740594654579,-500.0,0.00035616,14]
[354599617,1740594654591,-500.0,0.00035616,14]
[354599618,1740594654602,-1120.86,0.00035616,14]
[354599619,1740594654614,-660.68,0.00035616,14]
[354599620,1740594654627,-2852.6,0.00035616,14]
[354599621,1740594654640,-1200.34,0.00035616,14]
[354599622,1740594654652,-1248.44,0.00035616,14]
[354599623,1740594654664,-1936.14,0.00035616,14]
[354599624,1740594654676,-500.0,0.00035616,14]
[354599625,1740594654687,-500.0,0.00035616,14]
[354599626,1740594654699,-1323.65,0.00035616,14]
[354599627,1740594654710,-706.61,0.00035616,14]
[354599628,1740594654721,-500.0,0.00035616,14]
[354599629,1740594654732,-1512.61,0.00035616,14]
[354599630,1740594654743,-500.0,0.00035616,14]
[354599631,1740594654753,-846.89,0.00035616,14]
[354599632,1740594654764,-500.0,0.00035616,14]
[354599633,1740594654774,-705.12,0.00035616,14]
[354599634,1740594654784,-500.0,0.00035616,14]
[354599635,1740594654798,-500.0,0.00035616,14]
[354599636,1740594654808,-500.0,0.00035616,14]
[354599637,1740594654819,-3948.3,0.00035616,14]
[354599638,1740594654829,-1288.95,0.00035616,14]
[354599639,1740594654840,-500.0,0.00035616,14]
[354599640,1740594654850,-500.0,0.00035616,14]
[354599641,1740594654861,-151.0,0.00035616,7]
[354599642,1740594654871,-2891.83,0.00035616,14]
[354599643,1740594654882,-500.0,0.00035616,14]
[354599644,1740594654893,-1617.11,0.00035616,14]
[354599645,1740594654904,-521.83874017,0.00035616,14]
[354599646,1740594654914,-3636.46,0.00035616,14]
[354599647,1740594654925,-1209.09,0.00035616,14]
[354599648,1740594654936,-151.0,0.00035616,7]
[354599649,1740594654946,-2286.51,0.00035616,14]
[354599650,1740594654957,-500.0,0.00035616,14]
[354599651,1740594654968,-500.0,0.00035616,14]
[354599652,1740594654978,-500.0,0.00035616,14]
[354599653,1740594654988,-500.0,0.00035616,14]
[354599654,1740594654998,-515.07,0.00035616,14]
[354599655,1740594655008,-500.0,0.00035616,14]
[354599656,1740594655018,-1278.73,0.00035616,14]
[354599657,1740594655028,-2935.502964,0.00035616,7]
[354599658,1740594655038,-500.0,0.00035616,14]
[354599659,1740594655050,-2067.87,0.00035616,14]
[354599660,1740594655060,-500.0,0.00035616,14]
[354599661,1740594655071,-2575.77,0.00035616,14]
[354599662,1740594655083,-2575.77,0.00035616,14]
[354599663,1740594655094,-2575.77,0.00035616,14]
[354599664,1740594655105,-993.68,0.00035616,14]
[354599665,1740594655116,-2575.77,0.00035616,14]
[354599666,1740594655126,-2575.77,0.00035616,14]
[354599667,1740594655136,-865.65,0.00035616,14]
[354599668,1740594655146,-2935.502964,0.00035616,7]
[354599669,1740594655155,-2575.77,0.00035616,14]
[354599670,1740594655166,-2575.77,0.00035616,14]
[354599671,1740594655177,-2935.502964,0.00035616,7]
[354599672,1740594655186,-12202.17,0.00035616,14]
[354599673,1740594655196,-2935.502964,0.00035616,7]
[354599674,1740594655206,-1891.23,0.00035616,14]
[354599675,1740594655217,-500.0,0.00035616,14]
[354599676,1740594655227,-500.0,0.00035616,14]
[354599677,1740594655237,-500.0,0.00035616,14]
[354599678,1740594655247,-500.0,0.00035616,14]
[354599679,1740594655257,-718.47,0.00035616,14]
[354599680,1740594655267,-1536.31,0.00035616,14]
[354599681,1740594655277,-500.0,0.00035616,14]
[354599682,1740594655287,-500.0,0.00035616,14]
[354599683,1740594655300,-500.0,0.00035616,14]
[354599684,1740594655310,-1958.38,0.00035616,14]
[354599685,1740594655320,-500.0,0.00035616,14]
[354599686,1740594655331,-500.0,0.00035616,14]
[354599687,1740594655340,-500.0,0.00035616,14]
[354599688,1740594655350,-500.0,0.00035616,14]
[354599689,1740594655360,-500.0,0.00035616,14]
[354599690,1740594655371,-500.0,0.00035616,14]
[354599691,1740594655381,-532.22,0.00035616,14]
[354599692,1740594655391,-500.0,0.00035616,14]
[354599693,1740594655401,-1345.85,0.00035616,14]
[354599694,1740594655412,-3164.35,0.00035616,14]
[354599695,1740594655422,-779.11,0.00035616,14]
[354599696,1740594655432,-653.47,0.00035616,14]
[354599697,1740594655442,-1921.49,0.00035616,14]
[354599698,1740594655452,-585.96,0.00035616,14]
[354599699,1740594655462,-2844.46,0.00035616,14]
[354599700,1740594655471,-500.0,0.00035616,14]
[354599701,1740594655482,-670.94,0.00035616,14]
[354599702,1740594655491,-500.0,0.00035616,14]
[354599703,1740594655501,-506.54646298,0.00035616,14]
[354599704,1740594655511,-500.0,0.00035616,14]
[354599705,1740594655521,-500.0,0.00035616,14]
[354599706,1740594655531,-912.51,0.00035616,14]
[354599707,1740594655543,-500.0,0.00035616,14]
[354599708,1740594655553,-691.38,0.00035616,14]
[354599709,1740594655563,-500.0,0.00035616,14]
[354599710,1740594655574,-798.68,0.00035616,14]
[354599711,1740594655586,-500.0,0.00035616,14]
[354599712,1740594655596,-1720.49,0.00035616,14]
[354599713,1740594655606,-6462.11,0.00035616,14]
[354599714,1740594655615,-500.0,0.00035616,14]
[354599715,1740594655625,-1641.24,0.00035616,14]
[354599716,1740594655635,-500.0,0.00035616,14]
[354599717,1740594655644,-1875.55,0.00035616,14]
[354599718,1740594655654,-1464.54,0.00035616,14]
[354599719,1740594655663,-500.0,0.00035616,14]
[354599720,1740594655673,-500.0,0.00035616,14]
[354599721,1740594655683,-1933.78,0.00035616,14]
[354599722,1740594655692,-2203.58,0.00035616,14]
[354599723,1740594655702,-500.0,0.00035616,14]
[354599724,1740594655712,-500.0,0.00035616,14]
[354599725,1740594655722,-500.0,0.00035616,14]
[354599726,1740594655731,-751.77,0.00035616,14]
[354599727,1740594655741,-1401.39,0.00035616,14]
[354599728,1740594655751,-2747.33,0.00035616,14]
[354599729,1740594655760,-500.0,0.00035616,14]
[354599730,1740594655770,-2204.04,0.00035616,14]
[354599731,1740594655780,-4504.33,0.00035616,14]
[354599732,1740594655792,-1120.57,0.00035616,14]
[354599733,1740594655801,-2934.8,0.00035616,14]
[354599734,1740594655811,-591.79,0.00035616,14]
[354599735,1740594655820,-500.0,0.00035616,14]
[354599736,1740594655830,-500.0,0.00035616,14]
[354599737,1740594655839,-500.0,0.00035616,14]
[354599738,1740594655849,-1666.04,0.00035616,14]
[354599739,1740594655859,-3286.8,0.00035616,14]
[354599740,1740594655869,-657.44,0.00035616,14]
[354599741,1740594655879,-500.0,0.00035616,14]
[354599742,1740594655889,-500.0,0.00035616,14]
[354599743,1740594655899,-500.0,0.00035616,14]
[354599744,1740594655908,-500.0,0.00035616,14]
[354599745,1740594655918,-500.0,0.00035616,14]
[354599746,1740594655928,-1801.35,0.00035616,14]
[354599747,1740594655937,-2989.48,0.00035616,14]
[354599748,1740594655947,-1155.29,0.00035616,14]
[354599749,1740594655957,-500.0,0.00035616,14]
[354599750,1740594655967,-1292.54,0.00035616,14]
[354599751,1740594655977,-1774.58,0.00035616,14]
[354599752,1740594655987,-1420.54,0.00035616,14]
[354599753,1740594655997,-3327.76,0.00035616,14]
[354599754,1740594656006,-1205.0,0.00035616,14]
[354599755,1740594656016,-500.0,0.00035616,14]
[354599756,1740594656025,-3196.29,0.00035616,14]
[354599757,1740594656035,-500.0,0.00035616,14]
[354599758,1740594656048,-1695.14,0.00035616,14]
[354599759,1740594656058,-1175.11,0.00035616,14]
[354599760,1740594656069,-2739.28,0.00035616,14]
[354599761,1740594656079,-500.0,0.00035616,14]
[354599762,1740594656089,-791.8,0.00035616,14]
[354599763,1740594656099,-500.0,0.00035616,14]
[354599764,1740594656109,-1231.55,0.00035616,14]
[354599765,1740594656118,-555.81,0.00035616,14]
[354599766,1740594656128,-500.0,0.00035616,14]
[354599767,1740594656138,-711.89,0.00035616,14]
[354599768,1740594656148,-1083.33,0.00035616,14]
[354599769,1740594656158,-3427.98,0.00035616,14]
[354599770,1740594656169,-500.0,0.00035616,14]
[354599771,1740594656179,-929.88,0.00035616,14]
[354599772,1740594656189,-500.0,0.00035616,14]
[354599773,1740594656198,-1488.58,0.00035616,14]
[354599774,1740594656207,-3253.76,0.00035616,14]
[354599775,1740594656218,-500.0,0.00035616,14]
[354599776,1740594656227,-500.0,0.00035616,14]
[354599777,1740594656237,-704.69,0.00035616,14]
[354599778,1740594656248,-5726.53,0.00035616,14]
[354599779,1740594656258,-500.0,0.00035616,14]
[354599780,1740594656268,-500.0,0.00035616,14]
[354599781,1740594656278,-7763.03,0.00035616,14]
[354599782,1740594656288,-998.61,0.00035616,14]
[354599783,1740594656303,-1507.56,0.00035616,14]
[354599784,1740594656313,-500.0,0.00035616,14]
[354599785,1740594656323,-500.0,0.00035616,14]
[354599786,1740594656333,-500.0,0.00035616,14]
[354599787,1740594656343,-500.0,0.00035616,14]
[354599788,1740594656353,-2289.53,0.00035616,14]
[354599789,1740594656363,-2736.71,0.00035616,14]
[354599790,1740594656633,-1794.08,0.00035616,14]
[354599791,1740594656700,-1542.96578035,0.00035616,14]
[354599792,1740594656734,-430.5740626,0.00035616,14]
[354599793,1740594656746,-545.74015705,0.00035616,14]
[354599794,1740594656756,-500.0,0.00035616,14]
[354599795,1740594656765,-1671.11,0.00035616,14]
[354599796,1740594656775,-500.0,0.00035616,14]
[354599797,1740594656785,-500.0,0.00035616,14]
[354599798,1740594656799,-500.0,0.00035616,14]
[354599799,1740594656808,-4226.23,0.00035616,14]
[354599800,1740594656818,-3999.99,0.00035616,14]
[354599801,1740594656827,-1399.51,0.00035616,14]
[354599802,1740594656837,-500.0,0.00035616,14]
[354599803,1740594656847,-300.21751577,0.00035616,14]
[354599804,1740594656858,-500.0,0.00035616,14]
[354599805,1740594656867,-1749.14,0.00035616,14]
[354599806,1740594656877,-1202.29,0.00035616,14]
[354599807,1740594656886,-500.0,0.00035616,14]
[354599808,1740594656895,-1172.81,0.00035616,14]
[354599809,1740594656905,-766.04,0.00035616,7]
[354599810,1740594656914,-1226.12,0.00035616,14]
[354599811,1740594656924,-1098.54,0.00035616,14]
[354599812,1740594656933,-245.68177718,0.00035616,14]
[354599813,1740594656946,-254.31822282,0.00035616,14]
[354599814,1740594656955,-940.41709384,0.00035616,14]
[354599815,1740594656975,-549.69999642,0.00035616,14]
[354599816,1740594657013,-3213.09290974,0.00035616,14]
[354599817,1740594657022,-820.24,0.00035616,14]
[354599818,1740594657032,-12356.34,0.00035616,14]
[354599819,1740594657044,-2412.1,0.00035616,14]
[354599820,1740594657053,-956.9,0.00035616,14]
[354599821,1740594657063,-635.81,0.00035616,14]
[354599822,1740594657073,-231.66108,0.00035616,7]
[354599823,1740594657082,-500.0,0.00035616,14]
[354599824,1740594657092,-500.0,0.00035616,14]
[354599825,1740594657101,-9581.97,0.00035616,14]
[354599826,1740594657111,-500.0,0.00035616,14]
[354599827,1740594657120,-1124.66,0.00035616,14]
[354599828,1740594657130,-2948.82,0.00035616,14]
[354599829,1740594657139,-207.56440976,0.00035616,14]
[354599830,1740594657148,-759.01,0.00035616,14]
[354599831,1740594657158,-872.56,0.00035616,14]
[354599832,1740594657168,-2872.63,0.00035616,14]
[354599833,1740594657178,-664.31,0.00035616,14]
[354599834,1740594657187,-500.0,0.00035616,14]
[354599835,1740594657196,-578.98,0.00035616,14]
[354599836,1740594657206,-630.28,0.00035616,14]
[354599837,1740594657215,-151.0,0.00035616,7]
[354599838,1740594657224,-3570.16,0.00035616,14]
[354599839,1740594657234,-3062.05,0.00035616,14]
[354599840,1740594657243,-1051.83,0.00035616,14]
[354599841,1740594657252,-151.0,0.00035616,7]
[354599842,1740594657262,-1265.71,0.00035616,14]
[354599843,1740594657272,-3077.72,0.00035616,14]
[354599844,1740594657281,-1737.96,0.00035616,14]
[354599845,1740594657294,-184.1262271,0.00035616,14]
[354599846,1740594657304,-2190.55,0.00035616,14]
[354599847,1740594657314,-500.0,0.00035616,14]
[354599848,1740594657324,-500.0,0.00035616,14]
[354599849,1740594657334,-500.0,0.00035616,14]
[354599850,1740594657345,-500.0,0.00035616,14]
[354599851,1740594657355,-500.0,0.00035616,14]
[354599852,1740594657365,-1173.73,0.00035616,14]
[354599853,1740594657374,-500.0,0.00035616,14]
[354599854,1740594657384,-500.0,0.00035616,14]
[354599855,1740594657393,-500.0,0.00035616,14]
[354599856,1740594657403,-500.0,0.00035616,14]
[354599857,1740594657413,-1149.37,0.00035616,14]
[354599858,1740594657423,-367.8653934,0.00035616,14]
[354599859,1740594657833,-291.5955,0.00035616,14]
[354599860,1740594657904,-477.8391066,0.00035616,14]
[354599861,1740594657914,-500.0,0.00035616,14]
[354599862,1740594657924,-1033.1608934,0.00035616,14]
[354599863,1740594657936,-465.4091066,0.00035616,14]
[354599864,1740594657947,-223.7264134,0.00035616,14]
[354599865,1740594657963,-347.6935866,0.00035616,14]
[354599866,1740594657972,-186.8404132,0.00035616,14]
[354599867,1740594657984,-497.3395868,0.00035616,14]
[354599868,1740594657994,-9085.8,0.00035616,14]
[354599869,1740594658003,-500.0,0.00035616,14]
[354599870,1740594658013,-4321.61,0.00035616,14]
[354599871,1740594658022,-2051.82,0.00035616,14]
[354599872,1740594658032,-500.0,0.00035616,14]
[354599873,1740594658042,-1355.94,0.00035616,14]
[354599874,1740594658052,-3959.29,0.00035616,14]
[354599875,1740594658061,-1374.44,0.00035616,14]
[354599876,1740594658070,-3065.77,0.00035616,14]
[354599877,1740594658080,-500.0,0.00035616,14]
[354599878,1740594658089,-500.0,0.00035616,14]
[354599879,1740594658099,-2334.74,0.00035616,14]
[354599880,1740594658108,-872.99,0.00035616,14]
[354599881,1740594658118,-500.0,0.00035616,14]
[354599882,1740594658127,-500.0,0.00035616,14]
[354599883,1740594658137,-3329.33,0.00035616,14]
[354599884,1740594658146,-500.96980222,0.00035616,14]
[354599885,1740594658156,-500.0,0.00035616,14]
[354599886,1740594658165,-4101.02,0.00035616,14]
[354599887,1740594658174,-575.26,0.00035616,14]
[354599888,1740594658184,-1298.06,0.00035616,14]
[354599889,1740594658193,-500.0,0.00035616,14]
[354599890,1740594658203,-3682.15,0.00035616,14]
[354599891,1740594658212,-718.29,0.00035616,14]
[354599892,1740594658222,-500.0,0.00035616,14]
[354599893,1740594658231,-500.0,0.00035616,14]
[354599894,1740594658242,-849.45,0.00035616,14]
[354599895,1740594658251,-466.57915976,0.00035616,14]
[354599896,1740594658263,-33.42084024,0.00035616,14]
[354599897,1740594658273,-500.0,0.00035616,2]
[354599898,1740594658282,-500.0,0.00035616,14]
[354599899,1740594658295,-500.0,0.00035616,14]
[354599900,1740594658304,-500.0,0.00035616,14]
[354599901,1740594658314,-3670.18,0.00035616,14]
[354599902,1740594658324,-1891.53,0.00035616,14]
[354599903,1740594658333,-500.0,0.00035616,14]
[354599904,1740594658342,-500.0,0.00035616,14]
[354599905,1740594658352,-2316.29921817,0.00035616,14]
[354599907,1740595377370,529.23631475,0.0002547,120]
[354599998,1740595832097,-4283.99471631,0.00019178,2]
[354600001,1740595832109,-1196.7956,0.00019178,2]
[354600004,1740595832122,-135.20968369,0.00019178,2]
[354600005,1740595832132,-150.0,0.00020089,2]
[354600006,1740595832142,-70.94564212,0.00020999,2]
[354600007,1740595832168,-764.05435788,0.00020999,2]
[354600008,1740595832179,-250.0,0.00021,2]
[354600009,1740595832189,-176.1382831,0.00021,2]
[354600010,1740595832201,-1963.0,0.00021,2]
[354600011,1740595832212,-13571.67472895,0.00021,2]
[354600012,1740595832221,-150.0,0.00021033,2]
[354600013,1740595832231,-150.0,0.00021096,2]
[354600014,1740595832242,-300.0,0.00023,2]
[354600015,1740595832253,-201.21716057,0.000248,3]
[354600016,1740595832265,-350.0,0.00025,2]
[354600017,1740595832275,-500.0,0.000251,2]
[354600018,1740595832285,-201.21716052,0.00025329,4]
[354600019,1740595832298,-168.15,0.00026849,2]
[354600020,1740595832307,-319.0,0.000271,2]
[354600021,1740595832318,-258.57,0.00027256,2]
[354600022,1740595832328,-201.21716052,0.00028757,5]
[354600023,1740595832339,-2000.0,0.00029532,5]
[354600024,1740595832349,-1000.0,0.0003,2]
[354600025,1740595832360,-500.0,0.00031,2]
[354600026,1740595832370,-179.68,0.00031885,2]
[354600027,1740595832380,-450.41,0.00032016,120]
[354600028,1740595832390,-208.26,0.00032111,120]
[354600029,1740595832400,-201.21716052,0.00032186,6]
[354600030,1740595832410,-1033.96,0.00032332,2]
[354600031,1740595832420,-23900.0,0.00032429,2]
[354600032,1740595832430,-719.85,0.00032457,2]
[354600033,1740595832440,-2000.0,0.00032658,120]
[354600034,1740595832451,-965.29,0.00032705,2]
[354600035,1740595832461,-184.68,0.00033586,2]
[354600036,1740595832470,-223.3,0.00033914,2]
[354600037,1740595832481,-250.0,0.00033914,2]
[354600038,1740595832491,-1000.0,0.00034148,2]
[354600039,1740595832503,-173.4,0.0003432,120]
[354600040,1740595832513,-463.85,0.00034402,2]
[354600041,1740595832522,-811.07969482,0.0003455,2]
[354600042,1740595832531,-150.99,0.00034649,30]
[354600043,1740595832541,-844.52,0.00034649,2]
[354600044,1740595832553,-1386.94,0.00034649,2]
[354600045,1740595832563,-26828.33429312,0.00034649,10]
[354600046,1740595832579,-1564.16322837,0.00034649,10]
[354600047,1740595832618,-3921.95476128,0.00034649,10]
[354600048,1740595835191,-283.35,0.0003224,2]
[354600049,1740595835201,-11805.75771723,0.00034649,10]
[354600050,1740595835212,-9999.99,0.00034649,2]
[354600051,1740595835222,-268.77,0.00034649,2]
[354600052,1740595835232,-299.99,0.00034649,30]
[354600053,1740595835242,-162.25,0.0003473,2]
[354600054,1740595835252,-150.0,0.0003473,7]
[354600055,1740595835261,-439.56,0.00034878,2]
[354600056,1740595835271,-6173.9271648,0.0003489,20]
[354600057,1740595835280,-588.208225,0.00034903,4]
[354600058,1740595835290,-965.29,0.00034968,2]
[354600059,1740595835302,-811.0796948,0.00034975,2]
[354600060,1740595835311,-150.0,0.00035,2]
[354600061,1740595835321,-1000.0,0.00035,2]
[354600062,1740595835330,-302.32,0.00035068,2]
[354600063,1740595835340,-214.95318869,0.00035142,2]
[354600064,1740595835350,-184.0,0.000353,5]
[354600065,1740595835359,-811.0796948,0.000354,2]
[354600066,1740595835369,-343.01067091,0.00035415,2]
[354600067,1740595835378,-1003.64839968,0.00035415,120]
[354600069,1740595835387,-2645.1296,0.00035416,2]
[354600071,1740595835397,-266.9752,0.00035416,2]
[354600073,1740595835407,-31080.4308,0.00035416,2]
[354600075,1740595835416,-3887.7554,0.00035416,2]
[354600076,1740595835425,-1000.0,0.00035416,2]
[354600077,1740595835434,-2500.0,0.00035416,2]
[354600079,1740595835444,-162.25,0.00035425,2]
[354600080,1740595835453,-7477.65,0.00035455,2]
[354600081,1740595835462,-669.47001913,0.00035455,2]
[354600082,1740595835475,-1091.73998087,0.00035455,2]
[354600083,1740595835484,-9696.43,0.00035455,30]
[354600084,1740595835493,-21031.97303818,0.000355,4]
[354600086,1740595835508,-1545.88415412,0.000355,4]
[354600089,1740595835535,-250.00000072,0.000355,4]
[354600090,1740595835547,-415.04124212,0.000355,4]
[354600091,1740595835559,-371.46301667,0.000355,4]
[354600093,1740595835571,-1707.0,0.000355,4]
[354600095,1740595835583,-979.02,0.000355,4]
[354600099,1740595835602,-12862.20762465,0.000355,4]
[354600101,1740595835613,-1193.08854879,0.000355,4]
[354600103,1740595835625,-473.98902939,0.000355,4]
[354600105,1740595835634,-600.0,0.000355,12]
[354600107,1740595835643,-1612.47793996,0.00035506,2]
[354600109,1740595835655,-3204.84206004,0.00035506,2]
[354600111,1740595835664,-4444.39,0.00035515,42]
[354600113,1740595835674,-236.319,0.00035515,42]
[354600115,1740595835683,-1331.80299313,0.00035515,2]
[354600117,1740595835692,-2770.24594683,0.00035516,2]
[354600118,1740595835704,-3747.50905317,0.00035516,2]
[354600119,1740595835713,-1000.0,0.00035516,2]
[354600120,1740595835723,-5000.0,0.00035516,2]
[354600121,1740595835732,-8090.47337443,0.00035516,2]
[354600122,1740595835743,-3874.83882557,0.00035516,2]
[354600123,1740595835753,-1254.9331,0.00035516,2]
[354600125,1740595835762,-16324.14173869,0.00035516,2]
[354600172,1740595837904,-5260.6532848,0.00021,2]
[354600174,1740595837913,-252.01328851,0.00035516,2]
[354600176,1740595837926,-8535.0,0.00035516,2]
[354600181,1740595837968,-298.655,0.00035516,2]
[354600182,1740595837997,-10903.0326728,0.00035516,2]
[354600183,1740595838008,-327.27937672,0.00035516,2]
[354600184,1740595838017,-343.01067089,0.00035548,2]
[354600185,1740595838027,-5392.07727959,0.00035596,3]
[354600186,1740595838054,-424.94,0.00035596,3]
[354600187,1740595838115,-1629.83238255,0.00035596,3]
[354600188,1740595838126,-22210.14590386,0.00035596,3]
[354600189,1740595838137,-151.37583809,0.000356,60]
[354600190,1740595838147,-1200.0,0.000356,12]
[354600191,1740595838156,-8897.0986698,0.00035606,3]
[354600192,1740595838166,-352.18540785,0.00035606,2]
[354600193,1740595838176,-4817.32,0.00035606,2]
[354600194,1740595838187,-500.0,0.00035615,7]
[354600195,1740595838197,-500.0,0.00035615,7]
[354600196,1740595838206,-383.23143034,0.00035615,7]
[354600197,1740595838216,-500.0,0.00035615,7]
[354600198,1740595838225,-500.0,0.00035615,7]
[354600199,1740595838235,-243.62716411,0.00035615,7]
[354600200,1740595838245,-500.0,0.00035616,14]
[354600201,1740595838255,-488.22152119,0.00035616,14]
[354600202,1740595838264,-611.43778785,0.00035616,14]
[354600203,1740595838274,-500.0,0.00035616,14]
[354600205,1740595838283,-500.0,0.00035616,2]
[354600207,1740595838292,-500.0,0.00035616,14]
[354600209,1740595838302,-508.25763544,0.00035616,14]
[354600211,1740595838313,-423.54092531,0.00035616,14]
[354600213,1740595838322,-500.0,0.00035616,14]
[354600215,1740595838332,-504.66752174,0.00035616,3]
[354600217,1740595838341,-498.85706264,0.00035616,14]
[354600219,1740595838350,-500.0,0.00035616,14]
[354600221,1740595838360,-500.0,0.00035616,14]
[354600223,1740595838369,-500.0,0.00035616,14]
[354600225,1740595838378,-391.36022042,0.00035616,14]
[354600227,1740595838388,-157.23897,0.00035616,14]
[354600229,1740595838397,-808.73,0.00035616,14]
[354600231,1740595838406,-500.0,0.00035616,14]
[354600232,1740595838416,-672.636069,0.00035616,14]
[354600234,1740595838425,-500.0,0.00035616,14]
[354600236,1740595838434,-506.46468501,0.00035616,14]
[354600238,1740595838443,-520.28703276,0.00035616,14]
[354600240,1740595838452,-610.8,0.00035616,14]
[354600242,1740595838462,-516.74054162,0.00035616,14]
[354600245,1740595838471,-508.03856528,0.00035616,14]
[354600246,1740595838480,-1501.590989,0.00035616,14]
[354600248,1740595838490,-676.71,0.00035616,14]
[354600250,1740595838500,-500.0,0.00035616,14]
[354600253,1740595838510,-870.39,0.00035616,14]
[354600255,1740595838520,-500.0,0.00035616,14]
[354600257,1740595838530,-1090.2,0.00035616,14]
[354600259,1740595838539,-500.0,0.00035616,14]
[354600260,1740595838549,-1069.27,0.00035616,14]
[354600263,1740595838559,-814.89,0.00035616,14]
[354600266,1740595838569,-500.0,0.00035616,14]
[354600269,1740595838578,-500.0,0.00035616,14]
[354600273,1740595838588,-1150.39,0.00035616,14]
[354600276,1740595838597,-500.0,0.00035616,14]
[354600279,1740595838606,-500.0,0.00035616,14]
[354600282,1740595838615,-500.0,0.00035616,14]
[354600285,1740595838624,-500.0,0.00035616,14]
[354600288,1740595838633,-246.97870753,0.00035616,14]
[354600291,1740595838642,-500.0,0.00035616,14]
[354600294,1740595838652,-701.36,0.00035616,14]
[354600297,1740595838661,-500.0,0.00035616,14]
[354600300,1740595838670,-841.82,0.00035616,14]
[354600303,1740595838679,-500.0,0.00035616,14]
[354600306,1740595838688,-500.0,0.00035616,14]
[354600310,1740595838699,-500.0,0.00035616,14]
[354600312,1740595838708,-500.0,0.00035616,14]
[354600315,1740595838718,-670.19,0.00035616,14]
[354600319,1740595838727,-500.0,0.00035616,14]
[354600321,1740595838736,-500.0,0.00035616,14]
[354600324,1740595838745,-500.0,0.00035616,14]
[354600326,1740595838754,-300.0,0.00035616,14]